bitfinex/quotes_BTCUSD_20240617
["timestamp","ask_amount","ask_price","bid_price","bid_amount"]
[1718654674707,0.72335088,66545.0,66544.0,0.096435]
[1718654674919,1.02389888,66545.0,66544.0,0.096435]
[1718654675147,1.33585133,66545.0,66544.0,0.096435]
[1718654675362,2.39726293,66545.0,66544.0,0.096435]
[1718654675578,2.46420523,66545.0,66544.0,0.096435]
[1718654676018,2.02603691,66545.0,66544.0,0.096435]
[1718654676242,1.72548891,66545.0,66544.0,0.096435]
[1718654676647,2.02603691,66545.0,66544.0,0.096435]
[1718654676859,4.69836491,66545.0,66544.0,0.097435]
[1718654677073,4.69836491,66545.0,66544.0,0.096435]
[1718654677276,4.39981691,66545.0,66544.0,0.096435]
[1718654677484,4.41181691,66545.0,66544.0,0.097435]
[1718654677688,3.81863691,66545.0,66544.0,0.097435]
[1718654677901,3.79263691,66545.0,66544.0,0.096435]
[1718654678330,3.89586884,66545.0,66544.0,0.096435]
[1718654678747,3.88186884,66545.0,66544.0,0.096435]
[1718654679377,3.93435261,66545.0,66544.0,0.096435]
[1718654679743,4.23490061,66545.0,66544.0,0.096435]
[1718654679945,4.24890061,66545.0,66544.0,0.097435]
[1718654680907,4.15966868,66545.0,66544.0,0.097435]
[1718654681045,4.15966868,66545.0,66544.0,0.096435]
[1718654681253,4.20966868,66545.0,66544.0,0.096435]
[1718654681673,4.15966868,66545.0,66544.0,0.096435]
[1718654681855,3.84912068,66545.0,66544.0,0.096435]
[1718654682068,1.40682161,66545.0,66544.0,0.096435]
[1718654682277,1.1780757,66545.0,66544.0,0.096435]
[1718654682480,1.9254147,66545.0,66544.0,0.096435]
[1718654682682,0.74595785,66545.0,66544.0,0.096435]
[1718654682900,0.3577168,66545.0,66544.0,0.09858875]
[1718654683107,0.66967488,66545.0,66544.0,0.09858875]
[1718654683328,0.2379168,66545.0,66544.0,0.09858875]
[1718654683531,0.2717168,66545.0,66544.0,0.09958875]
[1718654684567,0.3717168,66545.0,66544.0,0.09958875]
[1718654685214,1.051282,66535.0,66533.0,0.009427]
[1718654685446,2.07669118,66535.0,66533.0,0.009427]
[1718654685638,0.2898,66520.0,66508.0,0.12668]
[1718654685838,0.2898,66520.0,66517.0,0.45558432]
[1718654685839,0.0198,66518.0,66517.0,0.45558432]
[1718654686044,0.150335,66518.0,66508.0,0.12668]
[1718654686274,0.1,66517.0,66508.0,0.12668]
[1718654686499,0.0198,66518.0,66508.0,0.12668]
[1718654686735,0.0198,66516.0,66508.0,0.12668]
[1718654687395,0.0198,66518.0,66508.0,0.12668]
[1718654688341,0.0198,66517.0,66508.0,0.12668]
[1718654688530,0.1,66519.0,66508.0,0.12668]
[1718654688763,0.1,66519.0,66509.0,0.150353]
[1718654688983,0.1,66519.0,66508.0,0.12668]
[1718654688984,0.1198,66519.0,66508.0,0.12668]
[1718654689200,0.0198,66518.0,66508.0,0.12668]
[1718654689635,0.0198,66517.0,66508.0,0.12668]
[1718654689874,0.1,66519.0,66508.0,0.12668]
[1718654689875,0.0198,66516.0,66508.0,0.12668]
[1718654691786,0.62354688,66516.0,66508.0,0.12668]
[1718654691990,1.07700397,66516.0,66508.0,0.12668]
[1718654692216,0.87723085,66516.0,66508.0,0.12668]
[1718654692618,0.57555185,66516.0,66508.0,0.12668]
[1718654693046,0.77253751,66516.0,66508.0,0.12668]
[1718654693264,1.07321651,66516.0,66508.0,0.12668]
[1718654693408,0.77253751,66516.0,66508.0,0.12668]
[1718654694385,0.81955556,66516.0,66508.0,0.12668]
[1718654694839,0.36853756,66516.0,66508.0,0.12668]
[1718654695012,0.42138127,66516.0,66508.0,0.12668]
[1718654695217,0.57172027,66516.0,66508.0,0.12668]
[1718654695628,0.52470159,66516.0,66508.0,0.12668]
[1718654695831,1.12605959,66516.0,66508.0,0.12668]
[1718654696267,0.67119129,66516.0,66508.0,0.00048]
[1718654696469,0.77638996,66516.0,66508.0,0.00048]
[1718654696688,0.4169469,66516.0,66511.0,0.46840038]
[1718654696904,0.32336843,66516.0,66515.0,0.2367896]
[1718654697111,0.27252888,66516.0,66515.0,0.2367896]
[1718654697895,0.25272888,66516.0,66515.0,0.2367896]
[1718654698759,0.24772888,66516.0,66515.0,0.2364896]
[1718654699079,0.26752888,66516.0,66515.0,0.2364896]
[1718654700094,0.24772888,66516.0,66515.0,0.2364896]
[1718654700518,0.1,66516.0,66515.0,0.2364896]
[1718654700665,0.1198,66519.0,66515.0,0.2364896]
[1718654700840,0.17252888,66518.0,66515.0,0.2364896]
[1718654701040,0.1,66517.0,66515.0,0.2364896]
[1718654703322,1.3608356,66516.0,66515.0,0.1132896]
[1718654703523,1.10303102,66516.0,66515.0,0.1132896]
[1718654703729,1.89221937,66516.0,66515.0,0.11070158]
[1718654703880,2.83766937,66516.0,66515.0,0.11070158]
[1718654704084,2.8173724,66516.0,66515.0,0.11070158]
[1718654704486,2.86712234,66516.0,66515.0,0.11070158]
[1718654704885,2.56644334,66516.0,66515.0,0.11070158]
[1718654705094,2.56546286,66516.0,66515.0,0.11070158]
[1718654705314,2.86614186,66516.0,66515.0,0.11070158]
[1718654705528,3.08134186,66516.0,66515.0,0.11070158]
[1718654705754,2.78066286,66516.0,66515.0,0.11070158]
[1718654705966,3.09134186,66516.0,66515.0,0.11070158]
[1718654706175,2.78066286,66516.0,66515.0,0.11070158]
[1718654706381,3.11434186,66516.0,66515.0,0.11070158]
[1718654706597,3.10434186,66516.0,66515.0,0.11070158]
[1718654706998,1.93146186,66516.0,66515.0,0.11070158]
[1718654707207,1.94146186,66516.0,66515.0,0.11070158]
[1718654707414,1.93146186,66516.0,66515.0,0.11070158]
[1718654707830,6.98146186,66516.0,66515.0,0.11070158]
[1718654708272,6.90553114,66516.0,66515.0,0.11070158]
[1718654708483,3.09953114,66516.0,66515.0,0.11070158]
[1718654708900,3.09953114,66516.0,66515.0,0.04816395]
[1718654708901,4.05021014,66516.0,66515.0,0.04816395]
[1718654709111,1.261542,66512.0,66511.0,0.31860038]
[1718654709319,2.75001501,66512.0,66511.0,0.18750038]
[1718654709566,2.75001501,66512.0,66508.0,0.00048]
[1718654709567,1.813699,66509.0,66508.0,0.00048]
[1718654709770,2.89954381,66509.0,66508.0,0.00048]
[1718654709978,7.97954381,66509.0,66508.0,0.00048]
[1718654710202,8.0084197,66509.0,66508.0,0.00048]
[1718654710416,6.93214374,66509.0,66508.0,0.00048]
[1718654710650,3.74414374,66509.0,66508.0,0.00048]
[1718654710870,3.63614374,66509.0,66508.0,0.00048]
[1718654711083,2.23643274,66509.0,66508.0,0.00048]
[1718654711286,2.38014374,66509.0,66508.0,0.00048]
[1718654711498,2.68085474,66509.0,66508.0,0.00048]
[1718654711697,2.58685474,66509.0,66508.0,0.00048]
[1718654711872,2.47985474,66509.0,66508.0,0.00048]
[1718654712076,2.78056574,66509.0,66508.0,0.00048]
[1718654712664,2.48085474,66509.0,66508.0,0.00048]
[1718654713002,2.25015474,66509.0,66508.0,0.00048]
[1718654713229,2.26015474,66509.0,66508.0,0.00048]
[1718654713452,2.25720271,66509.0,66508.0,0.00048]
[1718654713615,2.58070285,66509.0,66508.0,0.00048]
[1718654714372,1.67328085,66509.0,66508.0,0.00048]
[1718654714589,1.32256985,66509.0,66508.0,0.00048]
[1718654714796,3.46470285,66509.0,66508.0,0.00048]
[1718654715146,2.56256985,66509.0,66508.0,0.00048]
[1718654715723,2.12401485,66509.0,66508.0,0.00048]
[1718654715955,0.77513217,66509.0,66508.0,0.00048]
[1718654716147,0.77513217,66509.0,66508.0,0.12278]
[1718654717022,0.69972526,66509.0,66508.0,0.12278]
[1718654717247,1.2441577,66509.0,66508.0,0.00048]
[1718654717467,1.5448687,66509.0,66508.0,0.00048]
[1718654717884,1.5548687,66509.0,66508.0,0.00048]
[1718654718082,2.1100797,66509.0,66508.0,0.00048]
[1718654718327,2.1100797,66509.0,66506.0,0.009405]
[1718654718328,1.12232,66507.0,66506.0,0.00846764]
[1718654718531,1.7366117,66507.0,66506.0,0.00846764]
[1718654718736,6.67944668,66507.0,66506.0,0.00846764]
[1718654718939,6.93016668,66507.0,66506.0,0.00846764]
[1718654719142,6.67944668,66507.0,66506.0,0.00846764]
[1718654719356,4.36350132,66507.0,66506.0,0.00846764]
[1718654719561,1.051667,66501.0,66500.0,0.01]
[1718654719784,1.94376034,66501.0,66500.0,0.01]
[1718654719998,1.85943373,66501.0,66500.0,0.01]
[1718654720398,2.11441311,66501.0,66500.0,0.01]
[1718654720628,2.06486414,66501.0,66500.0,0.01]
[1718654720779,2.06586414,66501.0,66500.0,0.01]
[1718654720998,7.42661114,66501.0,66500.0,0.01]
[1718654721171,7.21828302,66501.0,66500.0,0.01]
[1718654721771,7.16578751,66501.0,66500.0,0.01]
[1718654721992,7.16678751,66501.0,66500.0,0.010946]
[1718654722239,0.2998,66494.0,66477.0,0.009405]
[1718654722441,0.2998,66494.0,66448.0,0.310388]
[1718654722649,0.2998,66494.0,66404.0,0.24297057]
[1718654722650,0.2998,66494.0,66416.0,0.29938359]
[1718654722651,0.868663,66417.0,66416.0,0.29938359]
[1718654722842,0.829023,66417.0,66416.0,0.29938359]
[1718654723774,0.829023,66417.0,66416.0,0.16362]
[1718654723775,1.12810317,66417.0,66416.0,0.16362]
[1718654723968,1.12810317,66417.0,66401.0,0.0983601]
[1718654723969,0.27855017,66402.0,66401.0,0.0983601]
[1718654724173,0.75577347,66402.0,66401.0,0.0983601]
[1718654724377,1.57244285,66402.0,66401.0,0.03322395]
[1718654724578,1.57244285,66402.0,66398.0,0.33156777]
[1718654724579,0.551613,66399.0,66398.0,0.33156777]
[1718654724801,1.44111355,66399.0,66398.0,0.33156777]
[1718654725034,1.9821231,66399.0,66398.0,0.33156777]
[1718654725257,2.15605947,66399.0,66398.0,0.33156777]
[1718654725473,1.85485047,66399.0,66398.0,0.33156777]
[1718654725720,0.88142347,66399.0,66398.0,0.33156777]
[1718654725886,1.20243247,66399.0,66398.0,0.33156777]
[1718654726086,1.33948832,66399.0,66398.0,0.33156777]
[1718654726330,1.64069732,66399.0,66398.0,0.25918682]
[1718654726801,2.35838795,66399.0,66398.0,0.25918682]
[1718654727026,3.41457267,66399.0,66398.0,0.25918682]
[1718654727233,4.09568167,66399.0,66398.0,0.25918682]
[1718654727432,6.09647267,66399.0,66398.0,0.25918682]
[1718654727608,6.09647267,66399.0,66384.0,0.0002]
[1718654727609,1.354252,66385.0,66384.0,0.0002]
[1718654727794,2.00551957,66385.0,66384.0,0.0002]
[1718654727998,1.70424757,66385.0,66384.0,0.0002]
[1718654728579,1.37997557,66385.0,66384.0,0.0002]
[1718654728791,1.37997557,66385.0,66367.0,0.1352]
[1718654728792,0.0198,66380.0,66367.0,0.1352]
[1718654728988,1.33459542,66385.0,66374.0,0.45558432]
[1718654728989,1.05105978,66379.0,66374.0,0.45558432]
[1718654729244,1.05105978,66379.0,66367.0,0.1352]
[1718654729245,0.81358021,66378.0,66368.0,0.0002]
[1718654729638,0.60200866,66377.0,66375.0,0.00232195]
[1718654729846,0.67828946,66376.0,66374.0,0.0002]
[1718654730057,0.26412083,66375.0,66370.0,0.63080232]
[1718654730248,0.07147084,66374.0,66370.0,0.63080232]
[1718654730395,0.06252792,66373.0,66371.0,0.0023502]
[1718654730755,0.0004481,66378.0,66374.0,0.1243]
[1718654730947,0.0004481,66378.0,66375.0,0.00602572]
[1718654731149,0.001,66376.0,66375.0,0.00842642]
[1718654731566,0.0004481,66378.0,66375.0,0.00842642]
[1718654731769,0.0004481,66386.0,66375.0,0.01508324]
[1718654731959,0.3126943,66385.0,66375.0,0.01508324]
[1718654732278,0.0004481,66386.0,66375.0,0.01508324]
[1718654732279,0.0004481,66386.0,66375.0,0.10628674]
[1718654732597,0.001,66376.0,66375.0,0.00905752]
[1718654733112,0.0014481,66376.0,66375.0,0.00905752]
[1718654733489,0.0014481,66376.0,66375.0,0.00892712]
[1718654733870,0.0014481,66376.0,66373.0,0.1591]
[1718654733871,0.0004481,66376.0,66373.0,0.1591]
[1718654734039,0.0024481,66385.0,66375.0,0.00892712]
[1718654734246,0.3127178,66384.0,66375.0,0.00892712]
[1718654734484,0.1,66383.0,66375.0,0.00892712]
[1718654734731,0.3127178,66382.0,66375.0,0.00892712]
[1718654734938,0.08,66377.0,66375.0,0.00892712]
[1718654735160,0.0804481,66377.0,66375.0,0.00892712]
[1718654735380,0.451969,66376.0,66375.0,0.00892712]
[1718654735514,0.31375386,66376.0,66375.0,0.00992712]
[1718654735714,0.31375386,66376.0,66370.0,0.36090232]
[1718654735715,0.02,66371.0,66370.0,0.36090232]
[1718654735917,2.04740488,66371.0,66370.0,0.36090232]
[1718654736127,2.02449474,66371.0,66370.0,0.36090232]
[1718654736326,2.32583074,66371.0,66370.0,0.36090232]
[1718654736527,4.16455907,66371.0,66370.0,0.36090232]
[1718654736729,4.82513789,66371.0,66370.0,0.36090232]
[1718654737190,4.87513789,66371.0,66370.0,0.36090232]
[1718654737396,0.09982833,66350.0,66349.0,0.005916]
[1718654737626,0.89240489,66350.0,66349.0,0.005916]
[1718654737834,0.66575917,66350.0,66349.0,0.005916]
[1718654738260,0.65487339,66350.0,66349.0,0.005916]
[1718654738479,0.33317698,66350.0,66349.0,0.005916]
[1718654738892,0.1804481,66350.0,66349.0,0.005916]
[1718654739101,0.1844481,66350.0,66349.0,0.005916]
[1718654739301,0.1844481,66350.0,66343.0,0.05238268]
[1718654739456,0.0844481,66350.0,66343.0,0.05238268]
[1718654739661,0.452194,66343.0,66342.0,0.26459736]
[1718654739863,0.4526421,66343.0,66342.0,0.26459736]
[1718654740069,0.3019111,66343.0,66342.0,0.26459736]
[1718654740232,0.4526421,66343.0,66342.0,0.26459736]
[1718654740431,0.1511791,66343.0,66342.0,0.26459736]
[1718654740642,0.51522161,66343.0,66342.0,0.26459736]
[1718654740867,0.53504994,66343.0,66342.0,0.26459736]
[1718654741249,0.21375861,66343.0,66342.0,0.26459736]
[1718654741459,0.83651294,66343.0,66342.0,0.26459736]
[1718654741657,0.68401766,66343.0,66342.0,0.26459736]
[1718654741857,0.68501766,66343.0,66342.0,0.26459736]
[1718654742300,1.21920954,66343.0,66342.0,0.26459736]
[1718654742578,1.31920954,66343.0,66342.0,0.26459736]
[1718654742802,0.9481225,66343.0,66342.0,0.26459736]
[1718654743005,1.08738588,66343.0,66342.0,0.26459736]
[1718654743147,0.48445988,66343.0,66342.0,0.26459736]
[1718654743349,1.09885262,66343.0,66342.0,0.26459736]
[1718654743559,1.70177862,66343.0,66342.0,0.26459736]
[1718654743760,1.09884714,66343.0,66342.0,0.26459736]
[1718654743955,1.70177859,66343.0,66342.0,0.26459736]
[1718654744190,0.64565859,66343.0,66342.0,0.26459736]
[1718654744335,1.10085259,66343.0,66342.0,0.26459736]
[1718654744535,0.64865859,66343.0,66342.0,0.26459736]
[1718654744780,1.70377859,66343.0,66342.0,0.26459736]
[1718654744990,0.64865859,66343.0,66342.0,0.26459736]
[1718654745197,1.10085259,66343.0,66342.0,0.26459736]
[1718654745380,1.40231559,66343.0,66342.0,0.26459736]
[1718654746215,1.70377859,66343.0,66342.0,0.26459736]
[1718654746407,1.10085259,66343.0,66342.0,0.26459736]
[1718654746608,0.64865859,66343.0,66342.0,0.26459736]
[1718654746784,1.10085259,66343.0,66342.0,0.26459736]
[1718654746988,0.64865859,66343.0,66342.0,0.26459736]
[1718654747195,0.79938959,66343.0,66342.0,1.26459736]
[1718654747393,0.64865859,66343.0,66342.0,1.26459736]
[1718654747609,0.65759675,66343.0,66342.0,1.27217565]
[1718654747812,0.50486787,66343.0,66342.0,1.27217565]
[1718654748106,0.49592971,66343.0,66342.0,1.27217565]
[1718654748247,0.50486787,66343.0,66342.0,1.27217565]
[1718654748456,0.64865859,66343.0,66342.0,1.27217565]
[1718654748662,0.41592971,66343.0,66342.0,1.27217565]
[1718654749360,0.56666071,66343.0,66342.0,1.27217565]
[1718654749561,0.41592971,66343.0,66342.0,1.27217565]
[1718654749720,0.41592971,66343.0,66342.0,1.26459736]
[1718654749924,0.41592971,66343.0,66342.0,1.27217565]
[1718654750371,0.56666071,66343.0,66342.0,1.27217565]
[1718654750573,0.86512371,66343.0,66342.0,1.27217565]
[1718654750744,0.86512371,66343.0,66342.0,1.26459736]
[1718654750964,0.71638959,66343.0,66342.0,1.26459736]
[1718654751171,1.78855841,66343.0,66342.0,1.27217565]
[1718654751383,1.78855841,66343.0,66342.0,1.26459736]
[1718654751581,1.85114578,66343.0,66342.0,1.26459736]
[1718654751846,2.15260878,66343.0,66342.0,1.26459736]
[1718654752049,2.15560878,66343.0,66342.0,1.26459736]
[1718654752251,1.97427264,66343.0,66342.0,1.24648722]
[1718654752523,2.42643536,66343.0,66342.0,1.25406551]
[1718654753022,2.54860438,66343.0,66342.0,1.25406551]
[1718654753437,2.55160438,66343.0,66342.0,1.25406551]
[1718654753871,2.55160438,66343.0,66342.0,1.25500051]
[1718654754667,3.25636738,66343.0,66342.0,1.25500051]
[1718654754823,4.62021054,66343.0,66342.0,0.92515694]
[1718654755024,4.62021054,66343.0,66342.0,0.78086971]
[1718654755025,5.32021054,66343.0,66342.0,0.78086971]
[1718654755237,10.57667182,66343.0,66342.0,0.77329142]
[1718654755443,9.18019475,66343.0,66342.0,0.77329142]
[1718654755701,4.46419475,66343.0,66342.0,0.77329142]
[1718654755913,4.46119475,66343.0,66342.0,0.77329142]
[1718654756127,4.96719475,66343.0,66342.0,0.77329142]
[1718654756333,3.53641133,66343.0,66342.0,0.77329142]
[1718654756565,3.52541133,66343.0,66342.0,0.77329142]
[1718654756986,3.55769118,66343.0,66342.0,0.77329142]
[1718654757477,3.24222818,66343.0,66342.0,0.77329142]
[1718654757700,3.25622818,66343.0,66342.0,0.77329142]
[1718654758851,2.68575433,66343.0,66342.0,0.77329142]
[1718654759475,1.80086273,66343.0,66342.0,0.77329142]
[1718654759755,1.68392892,66343.0,66342.0,0.77329142]
[1718654759962,1.66992892,66343.0,66342.0,0.77329142]
[1718654760196,2.2748518,66343.0,66342.0,0.78096708]
[1718654760401,1.68392892,66343.0,66342.0,0.78096708]
[1718654760601,2.2748518,66343.0,66342.0,0.78096708]
[1718654760806,2.69425354,66343.0,66342.0,0.78096708]
[1718654761015,2.39479054,66343.0,66342.0,0.78096708]
[1718654761233,3.19771654,66343.0,66342.0,0.77329142]
[1718654761514,3.04385739,66343.0,66342.0,0.78095676]
[1718654761797,3.14695326,66343.0,66342.0,0.78095676]
[1718654761999,2.84549026,66343.0,66342.0,0.78095676]
[1718654762149,3.29321978,66343.0,66342.0,0.78095676]
[1718654762361,2.99175678,66343.0,66342.0,0.77329142]
[1718654762588,2.34003038,66343.0,66342.0,0.78095676]
[1718654762768,2.34003038,66343.0,66342.0,0.95235676]
[1718654762769,1.84822566,66343.0,66342.0,0.95235676]
[1718654762946,1.85022566,66343.0,66342.0,0.95235676]
[1718654763148,0.45216272,66353.0,66348.0,0.02]
[1718654763362,0.45216272,66353.0,66349.0,0.150718]
[1718654763581,0.06034,66353.0,66352.0,0.150711]
[1718654763821,0.06034,66353.0,66352.0,0.753555]
[1718654764027,0.45216272,66360.0,66352.0,0.14666695]
[1718654764247,0.22,66375.0,66363.0,0.1734]
[1718654764459,0.02,66373.0,66364.0,0.16854224]
[1718654764664,0.02,66376.0,66365.0,0.150679]
[1718654764901,0.060327,66374.0,66365.0,0.150679]
[1718654765106,0.060327,66374.0,66366.0,0.0136423]
[1718654765357,0.060327,66374.0,66371.0,0.301335]
[1718654765565,0.060327,66374.0,66367.0,0.03479423]
[1718654765758,0.060327,66374.0,66372.0,0.00759915]
[1718654765959,0.060327,66374.0,66368.0,0.150673]
[1718654766164,0.060327,66374.0,66373.0,0.00759915]
[1718654766362,0.060327,66374.0,66370.0,0.00602595]
[1718654766630,0.08,66389.0,66374.0,0.1743]
[1718654766839,0.15272888,66388.0,66375.0,0.19341802]
[1718654767025,0.060314,66384.0,66375.0,0.03237635]
[1718654767231,0.773282,66376.0,66369.0,0.1686]
[1718654767568,0.00602818,66375.0,66370.0,0.45558432]
[1718654767806,0.09593072,66375.0,66369.0,0.1686]
[1718654768020,0.00893864,66370.0,66369.0,0.1686]
[1718654768220,0.15960864,66370.0,66369.0,0.1686]
[1718654768369,0.05279732,66370.0,66369.0,0.1686]
[1718654768574,0.06578803,66371.0,66369.0,0.1696]
[1718654768773,0.02,66374.0,66369.0,0.1686]
[1718654768974,0.06633264,66370.0,66369.0,0.1686]
[1718654769179,0.21700264,66370.0,66369.0,0.1686]
[1718654769386,0.00893794,66370.0,66369.0,0.1686]
[1718654769611,0.04424216,66370.0,66369.0,0.1686]
[1718654769812,0.04424216,66370.0,66369.0,0.3293]
[1718654770028,0.19491216,66370.0,66369.0,0.3293]
[1718654770247,1.11635367,66370.0,66369.0,0.1686]
[1718654770450,1.37069901,66370.0,66369.0,0.002]
[1718654770575,0.452058,66363.0,66362.0,0.1607]
[1718654770775,0.150686,66363.0,66362.0,0.1607]
[1718654771183,0.04425257,66364.0,66362.0,0.1607]
[1718654771373,0.04425257,66365.0,66363.0,0.150684]
[1718654771600,0.04425257,66367.0,66362.0,0.1607]
[1718654771815,0.04425257,66367.0,66362.0,0.311387]
[1718654772027,0.001,66370.0,66362.0,0.1607]
[1718654772028,0.04425257,66368.0,66362.0,0.1607]
[1718654772244,0.04425257,66369.0,66362.0,0.1607]
[1718654772483,0.04425257,66375.0,66365.0,0.3775]
[1718654772701,0.09744297,66383.0,66378.0,0.301304]
[1718654772915,0.09744297,66383.0,66375.0,0.3775]
[1718654772916,0.08850556,66383.0,66375.0,0.3775]
[1718654773142,0.07593072,66393.0,66377.0,0.3775]
[1718654773356,0.33397952,66392.0,66380.0,0.150647]
[1718654773556,0.37713072,66401.0,66380.0,0.150647]
[1718654773557,0.060306,66394.0,66380.0,0.15272888]
[1718654773809,0.00602818,66400.0,66380.0,0.15272888]
[1718654774011,0.07593072,66394.0,66380.0,0.30337388]
[1718654774224,0.07593072,66394.0,66385.0,0.150635]
[1718654774565,0.07593072,66393.0,66386.0,0.00602436]
[1718654774735,0.07593072,66393.0,66381.0,0.301287]
[1718654775016,0.07593072,66393.0,66379.0,0.2156]
[1718654775224,0.07593072,66393.0,66382.0,0.00825467]
[1718654775387,0.07593072,66393.0,66383.0,0.08973894]
[1718654775388,0.09593072,66393.0,66383.0,0.08973894]
[1718654775593,0.02,66391.0,66383.0,0.09799361]
[1718654775808,0.01,66392.0,66383.0,0.09799361]
[1718654775955,0.01,66392.0,66383.0,0.00825467]
[1718654776158,0.02,66390.0,66383.0,0.00825467]
[1718654776397,0.01,66392.0,66379.0,0.2156]
[1718654776595,0.02,66389.0,66384.0,0.00825467]
[1718654776795,0.02,66389.0,66385.0,0.001]
[1718654776980,0.02,66388.0,66385.0,0.00925467]
[1718654777184,0.02,66389.0,66379.0,0.36832888]
[1718654777554,0.002,66390.0,66380.0,0.0336865]
[1718654777755,0.451936,66381.0,66380.0,0.00824784]
[1718654777977,0.09593072,66385.0,66379.0,0.19910433]
[1718654778179,0.07593072,66385.0,66380.0,0.007398]
[1718654779063,0.002,66390.0,66381.0,0.00602545]
[1718654779676,0.002,66390.0,66382.0,0.007398]
[1718654779857,0.07593072,66394.0,66383.0,0.04234204]
[1718654779992,0.07593072,66394.0,66383.0,0.03631738]
[1718654780422,0.07593072,66394.0,66384.0,0.007398]
[1718654780630,0.07593072,66394.0,66384.0,0.027398]
[1718654780941,0.07593072,66394.0,66384.0,0.007398]
[1718654781151,0.07593072,66394.0,66385.0,0.03650024]
[1718654781348,0.07593072,66394.0,66379.0,0.25347286]
[1718654781552,0.07593072,66394.0,66386.0,0.0070281]
[1718654781804,0.22654972,66393.0,66380.0,0.15272888]
[1718654782015,0.15062,66392.0,66380.0,0.15272888]
[1718654782223,0.15062,66392.0,66381.0,0.06938629]
[1718654782429,0.02,66389.0,66384.0,0.001]
[1718654782631,0.07593072,66393.0,66384.0,0.001]
[1718654782876,0.01,66390.0,66384.0,0.001]
[1718654783120,0.170628,66389.0,66384.0,0.001]
[1718654783326,0.07593072,66393.0,66384.0,0.001]
[1718654783327,0.02,66387.0,66384.0,0.001]
[1718654783529,0.150631,66388.0,66384.0,0.001]
[1718654783749,0.02,66389.0,66377.0,0.3202]
[1718654783925,0.02,66391.0,66378.0,0.0470862]
[1718654784117,0.02,66389.0,66378.0,0.0541143]
[1718654784316,0.150644,66382.0,66378.0,0.0070281]
[1718654784517,0.09593072,66386.0,66378.0,0.0070281]
[1718654784715,0.471908,66385.0,66384.0,0.002]
[1718654784998,0.02,66393.0,66384.0,0.002]
[1718654785217,0.02,66393.0,66381.0,0.150644]
[1718654785425,0.07593072,66392.0,66382.0,0.08416743]
[1718654785649,0.02,66390.0,66382.0,0.09119431]
[1718654785855,0.07593072,66392.0,66382.0,0.09119431]
[1718654786021,0.07593072,66392.0,66382.0,0.00702688]
[1718654786236,0.02,66390.0,66378.0,0.151651]
[1718654786445,0.02,66390.0,66383.0,0.00702688]
[1718654786648,0.301223,66396.0,66378.0,0.151651]
[1718654786649,0.321209,66399.0,66379.0,0.42262888]
[1718654786868,0.321209,66399.0,66384.0,0.00702688]
[1718654786869,0.07593072,66387.0,66384.0,0.00702688]
[1718654787078,0.07593072,66394.0,66378.0,0.1593]
[1718654787238,0.07593072,66394.0,66385.0,0.00702688]
[1718654787453,0.07593072,66394.0,66379.0,0.0543]
[1718654787658,0.07593072,66394.0,66380.0,0.15272888]
[1718654787857,0.07593072,66387.0,66380.0,0.00702688]
[1718654788388,0.02,66403.0,66381.0,0.00602459]
[1718654788620,0.10854,66410.0,66381.0,0.00602459]
[1718654788621,0.006,66394.0,66382.0,0.22694354]
[1718654788811,0.210909,66398.0,66382.0,0.22694354]
[1718654788812,0.00085,66391.0,66383.0,0.150639]
[1718654789033,0.00085,66391.0,66383.0,0.00700676]
[1718654790454,0.02,66385.0,66383.0,0.00700676]
[1718654790615,0.471915,66384.0,66383.0,0.00700676]
[1718654790819,0.02,66382.0,66378.0,0.000935]
[1718654791581,0.150638,66384.0,66380.0,0.7183846]
[1718654791792,0.150635,66386.0,66380.0,0.7183846]
[1718654792001,0.150638,66385.0,66381.0,0.00700877]
[1718654792418,0.001,66382.0,66381.0,0.00700877]
[1718654792631,0.0819589,66387.0,66381.0,0.00700877]
[1718654792783,0.150643,66382.0,66381.0,0.00700877]
[1718654792991,0.15064,66383.0,66381.0,0.00700877]
[1718654793207,0.07593072,66387.0,66381.0,0.00700877]
[1718654793403,0.150643,66383.0,66381.0,0.00700877]
[1718654793609,0.150642,66383.0,66381.0,0.00700877]
[1718654793837,0.451929,66382.0,66381.0,0.00700877]
[1718654794206,1.14340243,66382.0,66381.0,0.00700877]
[1718654794457,1.29830778,66382.0,66381.0,0.00700877]
[1718654794630,1.29830778,66382.0,66380.0,0.70436707]
[1718654794631,0.451936,66381.0,66380.0,0.70436707]
[1718654794835,0.85106275,66381.0,66380.0,0.70436707]
[1718654795038,1.74104975,66381.0,66380.0,0.70436707]
[1718654795442,2.19506963,66381.0,66380.0,0.70436707]
[1718654795653,2.18613531,66381.0,66380.0,0.70436707]
[1718654795841,1.53774031,66381.0,66380.0,0.70436707]
[1718654796049,1.15631531,66381.0,66380.0,0.70436707]
[1718654796337,0.25056161,66381.0,66380.0,0.70436707]
[1718654796537,0.09783273,66381.0,66380.0,0.70436707]
[1718654796740,0.45558843,66381.0,66380.0,0.70436707]
[1718654796945,0.80090661,66381.0,66380.0,0.70436707]
[1718654797194,1.81584831,66381.0,66380.0,0.70436707]
[1718654797411,1.84699556,66381.0,66380.0,0.59456703]
[1718654797583,5.99536731,66381.0,66380.0,0.59456703]
[1718654797786,6.17863419,66381.0,66380.0,0.59456703]
[1718654798034,6.17971793,66381.0,66380.0,0.59456703]
[1718654798254,6.42986388,66381.0,66380.0,0.59456703]
[1718654798395,6.49608146,66381.0,66380.0,0.59456703]
[1718654798769,2.31758289,66381.0,66380.0,0.59456703]
[1718654798991,7.29762111,66381.0,66380.0,0.59456703]
[1718654799195,5.97499091,66381.0,66380.0,0.59456703]
[1718654799389,5.8887529,66381.0,66380.0,0.59456703]
[1718654799527,5.9087529,66381.0,66380.0,0.59456703]
[1718654799724,6.2763035,66381.0,66380.0,0.59456703]
[1718654799935,4.8901275,66381.0,66380.0,0.58933064]
[1718654800340,5.1251589,66381.0,66380.0,0.58933064]
[1718654800548,4.8438679,66381.0,66380.0,0.58933064]
[1718654800751,5.1451589,66381.0,66380.0,0.58933064]
[1718654801007,5.47926743,66381.0,66380.0,0.58933064]
[1718654801284,5.58226743,66381.0,66380.0,0.58933064]
[1718654801739,5.98355843,66381.0,66380.0,0.58933064]
[1718654801948,6.03355843,66381.0,66380.0,0.58933064]
[1718654802159,6.03355843,66381.0,66380.0,0.55733064]
[1718654802363,6.50135725,66381.0,66380.0,0.55733064]
[1718654802761,6.51966837,66381.0,66380.0,0.55733064]
[1718654803085,6.51966837,66381.0,66380.0,0.52433064]
[1718654803086,6.64258194,66381.0,66380.0,0.52433064]
[1718654803263,7.60643091,66381.0,66380.0,0.43549064]